Cogmind - Beta 11.1 @@@ ROGUE MODE // 2022.04.29 @ 18:00:01 Player: Runia Result: Destroyed by L-31 Rogue with Katana Performance ------------- Evolutions (1) 500 Regions Visited (6) 1200 Robots Destroyed (79) 395 Value Destroyed (1759) 1759 Prototype IDs (11) 220 Alien Tech Used (0) 0 Bonus (78) 78 TOTAL SCORE: 4152 Bonus ------- Follower Combat Kills 78 Cogmind --------- Core Integrity 0/400 Matter 8/300 Energy 100/100 System Corruption 0% Temperature Cool (0) Movement Core (700) Ox13 Location -8/Mines Parts ------- > --- POWER (1) -------- (None) > --- PROPULSION (3) --- (None) > --- UTILITY (3) ------ Cooling System High-capacity Storage Unit > --- WEAPON (2) ------- (None) > --- INVENTORY (20) --- Large Matter Pod (0) High-capacity Matter Pod (0) Gravity Neutralizer Experimental Sensor Array Experimental Targeting Computer AS-neutralizer No. 17b Assault Rifle Assault Rifle Assault Rifle Heavy Assault Rifle 8R-AWN's Boregun 8R-AWN's Boregun Mini Grenade Launcher Peak State ------------ > --- POWER ------------ Improved Ion Engine > --- PROPULSION ------- Light Treads Light Treads > --- UTILITY ---------- Cooling System High-capacity Storage Unit > --- WEAPON ----------- 8R-AWN's Boregun 8R-AWN's Boregun > --- INVENTORY -------- High-capacity Matter Pod Gravity Neutralizer Experimental Sensor Array Experimental Targeting Computer AS-neutralizer No. 17b Advanced Beam Cannon Advanced Beam Cannon Assault Rifle Assault Rifle Heavy Assault Rifle Rocket Launcher Mini Grenade Launcher [Rating: 31] Favorites ----------- Power Heavy Ion Engine Engine Heavy Ion Engine Propulsion Light Treads Treads Light Treads Leg Aluminum Leg Wheel Wheel Utility High-capacity Storage Unit Device Cooling System Storage High-capacity Storage Unit Protection Hardened Light Armor Plating Weapon Advanced Beam Cannon Energy Gun Small Laser Energy Cannon Advanced Beam Cannon Ballistic Gun Assault Rifle Ballistic Cannon Light Cannon Launcher Rocket Launcher Special Weapon Plasma Cutter Slashing Weapon Mining Claw Build | -11 -10 -10 -9 -9 -9 -8 ------- Run | Scr Mat Min Mat Min Exi Min Slots Evolved 2 | . . . 2 . . . Power . | . . . . . . . Propulsion 1 | . . . 1 . . . Utility 1 | . . . 1 . . . Weapon . | . . . . . . . Parts Attached 99 | 2 17 13 28 4 35 . Power 8 | . 3 1 3 . 1 . Engine 8 | . 3 1 3 . 1 . Core . | . . . . . . . Reactor . | . . . . . . . Propulsion 24 | 2 2 2 12 2 4 . Treads 23 | 2 1 2 12 2 4 . Leg . | . . . . . . . Wheel 1 | . 1 . . . . . Hover . | . . . . . . . Flight . | . . . . . . . Utility 18 | . 4 2 4 . 8 . Device 6 | . . 1 2 . 3 . Storage 4 | . 3 . . . 1 . Processor . | . . . . . . . Hackware . | . . . . . . . Protection 8 | . 1 1 2 . 4 . Artifact . | . . . . . . . Weapon 49 | . 8 8 9 2 22 . Energy Gun 1 | . 1 . . . . . Energy Cannon 5 | . . . 2 1 2 . Ballistic Gun 19 | . 2 3 3 . 11 . Ballistic Cannon 8 | . 2 3 3 . . . Launcher 14 | . 2 2 1 1 8 . Special Weapon 1 | . . . . . 1 . Impact Weapon . | . . . . . . . Slashing Weapon 1 | . 1 . . . . . Piercing Weapon . | . . . . . . . Special Melee Weapon . | . . . . . . . Unidentified Prototypes 5 | . . . 2 . 3 . Parts Lost 29 | . 3 5 1 . 19 1 Power 4 | . . 1 1 . 2 . Propulsion 11 | . 2 2 . . 7 . Utility 7 | . . 2 . . 5 . Weapon 7 | . 1 . . . 5 1 Highest Loss Streak 8 | . 1 3 1 . 8 1 To Critical Strikes 7 | . . . . . 7 . Average Slot Usage (%) 89 | . 94 88 98 100 69 33 Engine 9 | . 14 7 11 11 6 . Treads 26 | . 22 27 32 33 18 . Device 8 | . . 4 13 11 9 11 Storage 11 | . 14 14 11 11 11 11 Protection 7 | . 9 4 8 11 6 . Energy Gun 1 | . 12 . . . . . Energy Cannon 9 | . . . 15 22 5 . Ballistic Gun 5 | . 8 9 4 . 7 . Ballistic Cannon 4 | . 6 18 1 . . . Naked Turns . | . . . . . . . Heaviest Build 66 | 13 52 52 63 63 66 . Greatest Support 60 | 40 40 40 60 60 60 . Greatest Overweight (x) 15 | . 5 5 1 1 15 . Average Overweight (x) 1 | . 1 1 . 1 3 . Largest Inventory Capacity 20 | 8 20 20 20 20 20 20 Average Capacity 19 | 8 14 20 20 20 20 20 Most Carried 20 | 6 17 16 20 20 20 13 Average Carried 15 | 4 8 15 19 19 14 13 Final Capacity 20 | 8 20 20 20 20 20 20 Final Carried 20 | 2 15 16 20 20 13 13 Class Distribution -------------------- 94% | Mutant 5% | Scavenger-Mutant Dominant Class ---------------- Mutant | -10/Materials Mutant | -10/Mines Mutant | -9/Materials Mutant | -9/Mines Mutant | -9/Exiles Mutant | -8/Mines Resources | -11 -10 -10 -9 -9 -9 -8 ----------- Run | Scr Mat Min Mat Min Exi Min Matter Collected 2274 | 200 609 351 582 50 482 . Remotely . | . . . . . . . Salvage Created 3062 | . 1150 449 1269 69 125 . Parts 179 | . 67 16 79 12 5 . Haulers Intercepted 8 | . 2 . 6 . . . Recyclers Shooed 7 | . 3 . 3 1 . . Parts Field Recycled . | . . . . . . . Retrieved Matter . | . . . . . . . Parts Self-Destructed . | . . . . . . . Prevented . | . . . . . . . Kills | -11 -10 -10 -9 -9 -9 -8 ------- Run | Scr Mat Min Mat Min Exi Min Combat Hostiles Destroyed 63 | . 15 16 19 7 6 . Guns 21 | . 11 2 7 . 1 . Cannons 21 | . 2 5 12 2 . . AOE 20 | . 2 9 . 4 5 . Classes Destroyed 11 | . 6 3 2 . . . Worker 5 | . 2 2 1 . . . Builder 2 | . 1 . 1 . . . Hauler 8 | . 2 . 6 . . . Recycler 8 | . 4 3 1 . . . Watcher 6 | . 3 . 3 . . . Swarmer 12 | . . 3 2 7 . . Grunt 27 | . 15 4 8 . . . Duelist 1 | . . . 1 . . . Sentry 8 | . . . 8 . . . Demolisher 1 | . . 1 . . . . Assembled 13 | . . 8 . . 5 . Best Kill Streak 7 | . 4 7 4 4 3 . Combat Bots Only 7 | . 3 7 4 4 3 . Max Kills in Single Turn 4 | . 1 3 1 4 2 . Gunslinging . | . . . . . . . Exploded 4 | . 1 3 . 4 2 . Melee . | . . . . . . . Uniques/NPCs Destroyed 1 | . . . . . 1 . 8R-AWN (-9/Exiles) Combat | -11 -10 -10 -9 -9 -9 -8 -------- Run | Scr Mat Min Mat Min Exi Min Damage Taken 4767 | . 823 652 590 126 2384 192 Core 602 | . 118 74 85 25 206 94 Absorbed by Shields 136 | . . . 136 . . . Core Remaining (%) 61 | 100 . 23 . . . . Volleys Fired 294 | . 80 31 91 9 83 . Largest 2 | . 2 2 2 2 2 . Hottest 136 | . 80 70 136 136 136 . Shots Fired 548 | . 153 56 181 17 141 . Gun 360 | . 143 14 86 . 117 . Cannon 160 | . 8 36 94 16 6 . Launcher 26 | . 2 6 1 1 16 . Special 2 | . . . . . 2 . Kinetic 326 | . 67 50 92 . 117 . Thermal 181 | . 69 . 88 16 8 . Explosive 26 | . 2 6 1 1 16 . Electromagnetic 15 | . 15 . . . . . Robot Hit Streak 14 | . 14 7 13 5 14 . Robot Miss Streak 5 | . 4 2 5 2 3 . Penetration Max . | . . . . . . . Secondary Targets . | . . . . . . . Shots Hit Robots 361 | . 101 37 117 10 96 . Core Hits 158 | . 47 34 38 6 33 . Critical Kills 1 | . . . . 1 . . Critical Parts Destroyed 2 | . 1 . . . 1 . Critical Strikes 5 | . 1 1 . 1 2 . Meltdown 1 | . . . . 1 . . Destroy 3 | . 1 . . . 2 . Blast 1 | . . 1 . . . . Melee Attacks 1 | . 1 . . . . . Impact . | . . . . . . . Slashing 1 | . 1 . . . . . Piercing . | . . . . . . . Sneak Attacks . | . . . . . . . Combat Hostiles . | . . . . . . . Follow-up Attacks . | . . . . . . . Damage Inflicted 6809 | . 1363 1029 2136 437 1844 . Guns 3261 | . 1189 113 809 . 1150 . Cannons 2089 | . 52 443 1327 225 42 . Explosions 1458 | . 122 473 . 212 651 . Melee . | . . . . . . . Ramming . | . . . . . . . Kinetic 3145 | . 578 556 861 . 1150 . Thermal 2083 | . 540 . 1275 225 43 . Explosive 1458 | . 122 473 . 212 651 . Electromagnetic 123 | . 123 . . . . . Impact . | . . . . . . . Slashing . | . . . . . . . Piercing . | . . . . . . . Highest Corruption . | . . . . . . . Average Corruption . | . . . . . . . Corruption Purged . | . . . . . . . Corruption Blocked . | . . . . . . . Overload Shots . | . . . . . . . Overflow Damage 38 | . . 1 32 5 . . Projectiles 37 | . . . 32 5 . . Explosions 1 | . . 1 . . . . Melee . | . . . . . . . Knockbacks 8 | . . 6 2 . . . Impact . | . . . . . . . Kinetic 8 | . . 6 2 . . . Secondary . | . . . . . . . Self-Inflicted Damage 82 | . . . . . 82 . Shots 4 | . . . . . 4 . Rammed . | . . . . . . . Targets Rammed . | . . . . . . . Kicked . | . . . . . . . Crushed . | . . . . . . . Highest Temperature 342 | . 294 51 342 90 42 . Average Temperature 56 | . 55 15 72 34 17 . Received Heat Transfer 940 | . 420 193 204 9 60 54 Effects 2 | . 1 . 1 . . . Energy Bleed 1 | . . . 1 . . . Interference 1 | . 1 . . . . . Siege Activations . | . . . . . . . Robots Corrupted . | . . . . . . . Combat Hostiles . | . . . . . . . Parts Fried . | . . . . . . . Impact Corruptions . | . . . . . . . Robots Melted 1 | . . . . 1 . . Combat Hostiles 1 | . . . . 1 . . Parts Melted 10 | . . . 8 2 . . Heat Transferred 3799 | . 1200 . 2146 370 83 . Parts Sabotaged . | . . . . . . . Parts Stolen . | . . . . . . . Parts Stripped . | . . . . . . . Power Chain Reactions . | . . . . . . . Missiles Intercepted . | . . . . . . . Alert | -11 -10 -10 -9 -9 -9 -8 ------- Run | Scr Mat Min Mat Min Exi Min Peak Influence 334 | . 334 173 333 123 . . Initial 117 | . . 105 . 117 . . Average 137 | . 195 79 191 51 . . Maximum Alert Level 1 | . 1 . 1 . . . Low Security (%) 72 | 100 49 100 51 100 . 100 Level 1 27 | . 50 . 48 . . . Level 2 . | . . . . . . . Level 3 . | . . . . . . . Level 4 . | . . . . . . . Level 5 . | . . . . . . . High Security . | . . . . . . . Max Security . | . . . . . . . Squads Dispatched 8 | . 6 . 2 . . . Investigation 4 | . 3 . 1 . . . Extermination . | . . . . . . . Reinforcement 4 | . 3 . 1 . . . Assault . | . . . . . . . Garrison . | . . . . . . . Intercept . | . . . . . . . Searches Triggered . | . . . . . . . Construction Impeded . | . . . . . . . Haulers Reinforced . | . . . . . . . Active Scanning Responses . | . . . . . . . Cargo Convoy Interrupts . | . . . . . . . Stealth | -11 -10 -10 -9 -9 -9 -8 --------- Run | Scr Mat Min Mat Min Exi Min Distress Signals 3 | . 1 . 2 . . . Communications Jammed . | . . . . . . . Distress Signals . | . . . . . . . Times Spotted 127 | . 27 18 43 8 28 3 Peak Tracking Total 11 | . 4 8 5 4 11 4 Tactical Retreats 22 | . 6 1 1 . 14 . Traps | -11 -10 -10 -9 -9 -9 -8 ------- Run | Scr Mat Min Mat Min Exi Min Traps Triggered 3 | . 2 . 1 . . . Indirectly . | . . . . . . . Trap Hack Attempts . | . . . . . . . Triggered . | . . . . . . . Disarmed . | . . . . . . . Reprogrammed . | . . . . . . . Reused . | . . . . . . . Traps Extracted . | . . . . . . . Installed . | . . . . . . . Triggered . | . . . . . . . Exploded 3 | . . . . . 3 . Machines | -11 -10 -10 -9 -9 -9 -8 ---------- Run | Scr Mat Min Mat Min Exi Min Machines Disabled 8 | . 2 . . . 6 . Max in Single Turn 1 | . 1 . . . 1 . Machines Sabotaged . | . . . . . . . Garrisons Compromised . | . . . . . . . Overloaded Fab Kills . | . . . . . . . Hacking | -11 -10 -10 -9 -9 -9 -8 --------- Run | Scr Mat Min Mat Min Exi Min Machines Accessed 21 | . 7 1 12 . 1 . Terminals 17 | . 5 1 11 . . . Fabricators . | . . . . . . . Repair Stations . | . . . . . . . Recycling Units 3 | . 2 . 1 . . . Scanalyzers . | . . . . . . . Garrison Access . | . . . . . . . Total Hacks 46 | . 16 1 28 . 1 . Successful 23 | . 6 1 15 . 1 . Failed 23 | . 10 . 13 . . . Catastrophic 4 | . 1 . 3 . . . Database Lockouts . | . . . . . . . Manual 29 | . 13 2 14 . . . Terminals 42 | . 14 1 27 . . . Fabricators . | . . . . . . . Repair Stations . | . . . . . . . Recycling Units 3 | . 2 . 1 . . . Scanalyzers . | . . . . . . . Garrison Access . | . . . . . . . Terminal Hacks 20 | . 4 1 14 . 1 . Record 3 | . . . 2 . 1 . Robot Analysis 7 | . 3 1 3 . . . Prototype ID Bank 4 | . . . 4 . . . Emergency Access Points 2 | . . . 2 . . . Terminal Index 1 | . . . 1 . . . Locate Traps 2 | . . . 2 . . . Zone Layout 1 | . 1 . . . . . Fabricator Hacks . | . . . . . . . Repair Station Hacks . | . . . . . . . Recycling Unit Hacks 1 | . . . 1 . . . Retrieve Components 1 | . . . 1 . . . Scanalyzer . | . . . . . . . Garrison Access Hacks . | . . . . . . . Unauthorized Hacks 2 | . 2 . . . . . Terminals . | . . . . . . . Fabricators . | . . . . . . . Repair Stations . | . . . . . . . Recycling Units 2 | . 2 . . . . . Tunnel 2 | . 2 . . . . . Scanalyzers . | . . . . . . . Garrison Access . | . . . . . . . Data Cores Recovered . | . . . . . . . Used . | . . . . . . . Hacking Detections 16 | . 5 1 10 . . . Full Trace Events 1 | . 1 . . . . . Feedback Events . | . . . . . . . Feedback Blocked . | . . . . . . . Robot Schematics Acquired . | . . . . . . . Robots Built . | . . . . . . . Authchips . | . . . . . . . Time . | . . . . . . . Total Robot Build Rating . | . . . . . . . Part Schematics Acquired . | . . . . . . . Parts Built . | . . . . . . . Authchips . | . . . . . . . Time . | . . . . . . . Total Part Build Rating . | . . . . . . . Parts Repaired . | . . . . . . . Time . | . . . . . . . Parts Recycled . | . . . . . . . Recycled Matter . | . . . . . . . Retrieved Matter . | . . . . . . . Retrieved Components 9 | . . . 9 . . . Parts Scanalyzed . | . . . . . . . Part Schematics Acquired . | . . . . . . . Parts Damaged . | . . . . . . . Bothacking | -11 -10 -10 -9 -9 -9 -8 ------------ Run | Scr Mat Min Mat Min Exi Min Used RIF Installer . | . . . . . . . Robots Hacked . | . . . . . . . Non-combat . | . . . . . . . Combat . | . . . . . . . Robot Hacks Applied . | . . . . . . . Relay Couplers Released . | . . . . . . . Fabnet Peak Effective % . | . . . . . . . Robots Rewired . | . . . . . . . Allies Hacked . | . . . . . . . Hacks Repelled . | . . . . . . . Allies | -11 -10 -10 -9 -9 -9 -8 -------- Run | Scr Mat Min Mat Min Exi Min Total Allies 3 | . . 3 . . . . Largest Group 3 | . . 3 3 . . . Highest-Rated Group 40 | . . 40 40 . . . Highest-Rated Ally 16 | . . 16 16 . . . Total Orders . | . . . . . . . Ally Attacks 50 | . . . 50 . . . Total Damage 452 | . . . 452 . . . Kills 6 | . . . 6 . . . Allies Corrupted . | . . . . . . . Allies Melted . | . . . . . . . Intel | -11 -10 -10 -9 -9 -9 -8 ------- Run | Scr Mat Min Mat Min Exi Min Robot Analysis Total 7 | . 3 1 3 . . . Derelict Logs Recovered 3 | . . 2 . 1 . . Drone Launches . | . . . . . . . Drone Recoveries . | . . . . . . . Exploration | -11 -10 -10 -9 -9 -9 -8 ------------- Run | Scr Mat Min Mat Min Exi Min Turns Passed 9275 | 5 1354 1614 2596 1466 2233 7 Spaces Moved 3441 | 1 629 613 982 597 619 . Core 108 | . . . . . 108 . Treads 3162 | 1 468 603 982 597 511 . Legs . | . . . . . . . Wheels 171 | . 161 10 . . . . Hover . | . . . . . . . Flight . | . . . . . . . Fastest Speed 140 | 160 155 140 160 240 160 . Average Speed 233 | 160 167 238 220 240 307 . Slowest Speed 800 | 160 320 240 240 240 800 . Overloaded Moves . | . . . . . . . Propulsion Burnouts . | . . . . . . . Robots Hopped . | . . . . . . . Cave-ins Triggered . | . . . . . . . Exploration Rate (%) 63 | 2 99 98 85 99 58 3 Regions Visited 6 Branch Regions 4 Pre-discovered Areas 4 | . 2 . . 1 1 . Known Exits Taken . | . . . . . . . Unknown Exits Taken 6 | 1 1 1 1 1 1 . Scrap Searched 2 | . . 1 . 1 . . Spaces Dug 1 | . 1 . . . . . Terrain Destroyed 126 | . 16 53 9 12 36 . Melee 1 | . 1 . . . . . Projectile . | . . . . . . . AOE 125 | . 15 53 9 12 36 . Terrain Rammed . | . . . . . . . Walls Destroyed . | . . . . . . . Machines Disabled . | . . . . . . . Actions | -11 -10 -10 -9 -9 -9 -8 --------- Run | Scr Mat Min Mat Min Exi Min Total 4168 | 6 773 704 1254 616 808 7 Wait 187 | . 18 44 73 1 44 7 Move 3435 | . 628 612 981 596 618 . Hop . | . . . . . . . Pick Up 75 | . 20 4 33 2 16 . Fast Attach 10 | . 3 2 5 . . . Attach 26 | 2 3 3 2 . 16 . Detach 1 | . . . . . 1 . Swap 64 | . 11 8 22 4 19 . Drop 75 | 4 9 . 47 4 11 . Fire 294 | . 80 31 91 9 83 . Melee 1 | . 1 . . . . . Ram . | . . . . . . . Kick . | . . . . . . . Crush . | . . . . . . . Escape Stasis . | . . . . . . . Rewire . | . . . . . . . Trap . | . . . . . . . Miscellaneous . | . . . . . . . Route ------- -11/Scrapyard -10/Materials (discovered 5 exits: *Mat x3 / *Min x2) -10/Mines (discovered 2 exits: *Mat x2) -9/Materials (discovered 4 exits: [*Mat x2] / [*Min x2]) -9/Mines (discovered 3 exits: [*Mat x2] / *Exi) -9/Exiles -8/Mines History --------- Turn | Location | Event 6 | -11/Scrapyard | Discovered new exit (range 0) 6 | -11/Scrapyard | Entered Materials 303 | -10/Materials | Build established: Mutant 362 | -10/Materials | Discovered new exit (range 9) 438 | -10/Materials | Discovered new exit (range 16) 466 | -10/Materials | Discovered new exit (range 14) 594 | -10/Materials | Discovered new exit (range 16) 1174 | -10/Materials | Discovered new exit (range 7) 1360 | -10/Materials | Entered Mines 1368 | -10/Mines | Assembled infested the area 1383 | -10/Mines | Core integrity fell below 50% 1421 | -10/Mines | Destroyed 7 combat bots 1430 | -10/Mines | Lost 3 parts (1p1n1u) 1739 | -10/Mines | Learned Materials emergency access door positions 1761 | -10/Mines | Discovered new exit (range 9) 2077 | -10/Mines | Discovered new exit (range 10) 2158 | -10/Mines | Learned Materials terminal intel 2815 | -10/Mines | Assisted by bots powering up and referring to "LRC-V3" 2974 | -10/Mines | Entered Materials 2974 | -9/Materials | Accompanied by 3 allies 2974 | -9/Materials | Evolved 2 slots: Propulsion x1, Utility x1 2976 | -9/Materials | Loaded intel: 12 terminal locations 3369 | -9/Materials | Discovered new exit (range 8) 3458 | -9/Materials | Discovered new exit (range 6) 3496 | -9/Materials | Build established: Scavenger-Mutant 3805 | -9/Materials | Discovered new exit (range 16) 4035 | -9/Materials | Build established: Mutant 4037 | -9/Materials | Discovered new exit (range 7) 5570 | -9/Materials | Entered Mines 5571 | -9/Mines | Learned location of Storage (-7) 5602 | -9/Mines | A weapon hastily lodged in a ceiling crevice suddenly fell to the ground 5640 | -9/Mines | Learned location of 1 exit from Materials 5688 | -9/Mines | Received a Rocket Launcher from a helpful Derelict 5736 | -9/Mines | Found a hidden stash of uninstalled traps 5880 | -9/Mines | Deemed a non-threat by the Exiles lab entrance 6079 | -9/Mines | Found a damaged Exp. Sensor Array with a note attached 6085 | -9/Mines | Found Prototype Device 6413 | -9/Mines | Discovered new exit (range 4) 6651 | -9/Mines | Discovered new exit (range 5) 6748 | -9/Mines | Joined a pair of Derelicts in attacking an 0b10 outpost 7026 | -9/Mines | Discovered new exit (range 5) 7036 | -9/Mines | Entered Exiles 7101 | -9/Exiles | Met 8R-AWN 7135 | -9/Exiles | Met EX-HEX 7273 | -9/Exiles | Met EX-DEC 7314 | -9/Exiles | Learned location of Zion (-7) 7475 | -9/Exiles | Discovered new exit (range 14) 7825 | -9/Exiles | Attacked by the Exiles 7976 | -9/Exiles | Core integrity fell below 50% 8002 | -9/Exiles | Lost 8 parts (1p3n2u2w) 8099 | -9/Exiles | Destroyed 8R-AWN 8110 | -9/Exiles | Found Prototype Processor 8113 | -9/Exiles | Found Prototype Device 8117 | -9/Exiles | Found Prototype Ballistic Gun 8120 | -9/Exiles | Found Prototype Ballistic Gun 8127 | -9/Exiles | Lost 6 parts (2n3u1w) 8135 | -9/Exiles | Identified AS-neutralizer No. 17b 8137 | -9/Exiles | Identified 8R-AWN's Boregun (x2) 8465 | -9/Exiles | Lost 4 parts (2n2w) 9269 | -9/Exiles | Entered Mines 9272 | -8/Mines | Core integrity fell below 20% 9276 | -8/Mines | Destroyed by L-31 Rogue with Katana Last Messages --------------- 08199_ Acquired Prototype Device. 08203_ Acquired Adv. Beam Cannon. 08306_ Imp. Ion Engine destroyed. 08309_ as-94333 destroyed. 08353_ Machine disabled. 08426_ Lgt. Treads destroyed. 08427_ Machine disabled. 08430_ Lgt. Treads destroyed. 08432_ Adv. Beam Cannon destroyed. 08432_ Knocked back. 08434_ Adv. Beam Cannon destroyed. 08434_ Knocked back. 08442_ Acquired 7 matter. 08589_ Acquired Assault Rifle. 08761_ Acquired 5 matter. 09060_ Acquired Lrg. Matter Pod. A strange signal echoes through the mines. LOCATION=UNKNOWN GOAL=ESCAPE 09271_ Rocket Launcher destroyed. Map ----- +----------------------------------------------------+ | ?????????????????????????????????????????????????? | | ?????????????????????????????????????????????????? | | ?????????????????????????????????????????????????? | | ?????????????????????????????????????????????????? | | ?????????????????????????????????????????????????? | | ?????????????????????????????????????????????????? | | ?????????????????????????????????????????????????? | | ?????????????????????????????????????????????????? | | ?????????????????????????????????????????????????? | | ?????????????????????????????????????????????????? | | ?????????????????????????????????????????????????? | | ?????????????????????????????????????????????????? | | ?????????????????????????????????????????????????? | | ?????????????????????????????????????????????????? | | ?????????????????????????????????????????????????? | | ?????????????????????????????????????????????????? | | ?????????????????????????????????????????????????? | | ?????????????????????????????????????????????????? | | ?????????????????????????????????????????????????? | | ????????????????????????????##???????????????????? | | ???????????????????????????? ????????????????????? | | ??????????????????????????? ##???????????????????? | | ???????????????????????#### ####### ?????????? | | ??????????????????????## g ????????? | | ??????????????????????# g ????????????? | | ??????????????????????# @l #???????????????????? | | ??????????????????????# ##???????????????????? | | ??????????????????????## ##????????????????????? | | ???????????????????????# ###?????????????????????? | | ???????????????????????# ????????????????????????? | | ???????????????????????# ????????????????????????? | | ???????????????????????# ????????????????????????? | | ??????????????????????? ????????????????????????? | | ???????????????????????##????????????????????????? | | ?????????????????????????????????????????????????? | | ?????????????????????????????????????????????????? | | ?????????????????????????????????????????????????? | | ?????????????????????????????????????????????????? | | ?????????????????????????????????????????????????? | | ?????????????????????????????????????????????????? | | ?????????????????????????????????????????????????? | | ?????????????????????????????????????????????????? | | ?????????????????????????????????????????????????? | | ?????????????????????????????????????????????????? | | ?????????????????????????????????????????????????? | | | | | | | | | | | +----------------------------------------------------+ Best States ------------- Heat Dissipation 50 Energy Generation 14 Energy Capacity 280 Matter Stores 300 Matter Capacity 300 Sight Range 16 Terrain Scan Density 10 Armor Coverage 450 Evasion (%) 40 Recoil Reduction 3 Item Schematics ----------------- None Robot Schematics ------------------ None Fabricated ------------ Nothing Alien Tech Used ----------------- None Achievements -------------- None Challenges ------------ None Game ------ Seed ResetThermalProtomatter Manual? 0 Play Time 00:39:29 Cumulative 614.9 hours Start 2022.04.29 @ 17:20:09 End 2022.04.29 @ 18:00:01 Sessions 1 Manual Loads 0 Difficulty Rogue Special Mode None Game No. 579 Rogue 579 Adventurer 0 Explorer 0 Win Type - Total 22 Types 10/4/4/1/1/0/1/1/0 Lore% 88 Gallery% 95 Achievement% 77 Wizard Run 0 Options --------- ASCII 0 Keyboard 0 Movement Mouse Keybinds 1 Fullscreen 2 Font 24/Smallcaps Map View 76x50 Tactical HUD 1 Map Filters NONE Filters NONE Steam 1 RUN: cc50a6f8-ca6a-49db-834c-3007fff52b6c